bitfinex/quotes_ETHUSD_20210701
["timestamp","ask_amount","ask_price","bid_price","bid_amount"]
[1625158225574,0.32954123,2091.3,2090.2,11.0351]
[1625158225676,1.4906,2090.9,2089.5,10.0703]
[1625158225780,42.5031,2090.9,2089.5,10.0703]
[1625158225877,0.35002329,2090.8,2089.5,10.0703]
[1625158226178,0.35002329,2090.8,2089.4,10.4515]
[1625158226278,3.58842,2090.5,2089.2,0.02223778]
[1625158226428,0.3445287,2090.4,2089.2,0.02223778]
[1625158226526,4.0905287,2090.4,2089.2,0.02223778]
[1625158226627,5.30422435,2090.4,2089.2,0.02223778]
[1625158226780,0.253002,2090.2,2089.2,0.02223778]
[1625158226878,7.17754,2089.7,2089.2,0.02223778]
[1625158226978,2.4,2089.6,2089.2,0.02223778]
[1625158227177,0.12,2089.5,2089.2,0.02223778]
[1625158227609,2.4,2089.6,2089.2,0.02223778]
[1625158228312,0.21976663,2089.5,2088.2,6.87]
[1625158228419,15.0,2089.5,2088.2,6.87]
[1625158228512,0.56627016,2089.4,2088.2,6.87]
[1625158228613,0.22184793,2089.0,2088.2,6.87]
[1625158228713,0.31621148,2089.5,2088.2,6.87]
[1625158228815,4.4764,2089.1,2088.2,6.87]
[1625158229115,4.4764,2089.1,2088.0,12.42198392]
[1625158229414,4.4764,2089.1,2088.1,2.43826458]
[1625158229873,4.4764,2089.1,2088.2,7.17756]
[1625158230072,4.4764,2089.1,2088.2,12.13756]
[1625158230272,4.4764,2089.1,2088.3,2.43826458]
[1625158230372,2.4,2089.6,2088.3,2.43826458]
[1625158230675,2.4,2089.6,2088.3,4.81523184]
[1625158230924,9.57766,2089.6,2088.3,4.81523184]
[1625158231978,2.4,2089.6,2088.3,4.81523184]
[1625158232114,2.4,2089.6,2088.4,0.15]
[1625158232214,10.3792,2089.8,2088.4,0.15]
[1625158232311,7.17661,2090.0,2088.4,0.15]
[1625158232464,0.01000486,2089.5,2088.5,4.81523184]
[1625158232565,0.01000486,2089.5,2088.5,9.82523184]
[1625158232816,0.01000486,2089.5,2088.2,0.15]
[1625158233165,7.17866,2089.3,2088.2,0.15]
[1625158233718,0.01000486,2089.5,2088.2,0.15]
[1625158233814,0.01000486,2089.5,2088.2,4.96523184]
[1625158234219,7.17863,2089.3,2088.2,9.97523184]
[1625158234393,7.17863,2089.3,2088.2,0.15]
[1625158234394,0.2,2089.2,2088.2,0.15]
[1625158234489,0.2,2089.2,2088.2,5.16]
[1625158234591,5.5218,2089.3,2088.2,7.59826458]
[1625158234690,0.9491,2089.3,2088.2,4.96523184]
[1625158234789,0.9491,2089.3,2088.2,9.97523184]
[1625158235189,0.9491,2089.3,2088.2,4.96523184]
[1625158235492,11.34395,2089.2,2088.2,0.15]
[1625158235690,11.38395,2089.2,2088.2,0.15]
[1625158235790,11.34395,2089.2,2088.2,0.15]
[1625158236922,7.17865,2089.2,2088.2,4.96523184]
[1625158237019,0.9491,2089.3,2088.2,14.13263184]
[1625158237168,3.21000486,2089.5,2088.2,14.13263184]
[1625158237320,0.01000486,2089.5,2088.2,14.13263184]
[1625158237721,0.01000486,2089.5,2088.3,7.17737]
[1625158237923,0.01000486,2089.5,2088.4,0.15]
[1625158238021,0.01000486,2089.5,2088.4,4.96523184]
[1625158238220,0.01000486,2089.5,2088.4,9.97523184]
[1625158238895,0.01000486,2089.5,2088.6,7.17621]
[1625158239089,0.01000486,2089.5,2088.7,0.15]
[1625158239389,46.32622337,2089.4,2088.7,0.15]
[1625158241352,46.32622337,2089.4,2088.7,2.58826458]
[1625158241450,46.32622337,2089.4,2088.7,7.59826458]
[1625158241853,46.32622337,2089.4,2088.8,7.17566]
[1625158242050,46.32622337,2089.4,2088.8,12.33566]
[1625158242352,46.32622337,2089.4,2088.8,14.77392458]
[1625158243568,46.32622337,2089.4,2088.8,7.59826458]
[1625158243919,46.32622337,2089.4,2088.8,0.15]
[1625158244220,0.12,2089.3,2088.8,0.15]
[1625158244318,4.9809,2089.3,2088.8,0.15]
[1625158244617,4.8609,2089.3,2088.8,0.15]
[1625158245223,11.5,2089.2,2088.4,5.53696726]
[1625158245321,4.8609,2089.3,2088.5,0.15]
[1625158245666,4.8609,2089.3,2088.5,2.58826458]
[1625158245772,46.32622337,2089.4,2088.5,7.59826458]
[1625158245869,46.32622337,2089.4,2088.5,2.58826458]
[1625158245966,46.32622337,2089.4,2088.5,7.59826458]
[1625158246367,46.32622337,2089.4,2088.6,7.17627]
[1625158246567,46.32622337,2089.4,2088.6,12.18627]
[1625158249517,46.32622337,2089.4,2088.6,14.62453458]
[1625158250639,46.32622337,2089.4,2088.6,22.62453458]
[1625158250737,46.32622337,2089.4,2088.7,0.15]
[1625158251241,46.32622337,2089.4,2088.7,2.58826458]
[1625158251338,46.32622337,2089.4,2088.7,7.59826458]
[1625158251786,46.32622337,2089.4,2089.0,7.17566]
[1625158252037,46.32622337,2089.4,2089.1,0.15]
[1625158252390,4.86e-06,2089.5,2089.1,0.15]
[1625158252526,4.86e-06,2089.5,2089.1,2.58826458]
[1625158252625,4.86e-06,2089.5,2089.2,0.12]
[1625158252822,4.86e-06,2089.5,2089.3,3.4155]
[1625158252923,4.86e-06,2089.5,2089.4,7.17356]
[1625158253025,4.86e-06,2089.5,2089.4,12.18356]
[1625158253125,0.51406041,2090.4,2089.4,12.33356]
[1625158253226,0.51406041,2090.4,2089.4,20.33356]
[1625158253325,0.51406041,2090.4,2089.4,15.59826458]
[1625158253429,0.51406041,2090.9,2089.5,0.18]
[1625158253675,0.51406041,2090.9,2089.6,0.15]
[1625158253975,7.17266,2090.7,2089.8,7.17274]
[1625158254078,0.00904284,2090.3,2089.6,12.15191458]
[1625158254175,0.00904284,2090.3,2089.6,17.16191458]
[1625158254769,0.00904284,2090.3,2089.7,0.06]
[1625158254965,0.00904284,2090.3,2089.7,7.32299]
[1625158255065,0.00904284,2090.3,2089.7,12.33299]
[1625158259114,0.00904284,2090.3,2089.7,12.2942151]
[1625158260067,0.00904284,2090.3,2089.7,5.1212251]
[1625158260167,0.00904284,2090.3,2089.7,0.1112251]
[1625158261025,12.04022284,2090.3,2089.1,0.15]
[1625158261221,3.4,2090.1,2089.1,0.15]
[1625158262029,3.4,2090.1,2088.9,9.56436]
[1625158262030,7.17618,2089.7,2088.7,7.17652]
[1625158262175,12.15516459,2089.7,2088.7,7.17652]
[1625158262526,2.0,2088.8,2088.7,7.17652]
[1625158262923,6.60032823,2089.6,2088.8,29.55]
[1625158263077,13.77669823,2089.6,2088.8,36.72637]
[1625158263175,13.77669823,2089.6,2088.8,7.17637]
[1625158264077,13.77669823,2089.6,2088.6,12.10491]
[1625158264175,13.77669823,2089.6,2088.6,0.15]
[1625158264827,0.00869979,2089.5,2088.6,0.15]
[1625158265329,0.1,2089.4,2088.3,6.87]
[1625158265428,6.60032823,2089.3,2088.3,6.87]
[1625158266113,6.60032823,2089.3,2088.0,10.7256]
[1625158266317,7.17931,2088.8,2088.0,10.7256]
[1625158267465,7.17931,2088.8,2087.7,17.1814]
[1625158267567,7.39030293,2088.8,2087.7,17.1814]
[1625158267665,7.17931,2088.8,2087.7,17.1814]
[1625158267768,7.38716875,2088.8,2087.7,17.1814]
[1625158267869,0.2454769,2089.0,2087.7,29.07591167]
[1625158267967,6.60032823,2089.3,2087.7,29.07591167]
[1625158268125,26.25640823,2089.4,2087.8,0.06]
[1625158268324,26.25640823,2089.4,2087.9,0.15]
[1625158268521,26.25640823,2089.4,2087.9,4.86464167]
[1625158268624,26.25640823,2089.4,2087.9,9.87464167]
[1625158268876,16.68572823,2089.4,2088.4,7.17746]
[1625158268976,6.60032823,2089.4,2088.4,10.76566]
[1625158269174,6.60032823,2089.4,2088.4,18.21392458]
[1625158272188,13.77760823,2089.4,2088.4,11.03646458]
[1625158272337,13.77760823,2089.4,2088.4,2.43826458]
[1625158272657,0.06,2089.3,2088.2,5.01]
[1625158272761,0.06,2089.3,2088.1,5.01]
[1625158272854,6.60032823,2089.2,2088.1,5.01]
[1625158272955,6.60032823,2089.2,2088.0,0.15]
[1625158273405,6.60032823,2089.2,2088.2,0.01]
[1625158273656,2.6,2089.1,2088.2,0.01]
[1625158274156,7.17947,2088.7,2088.2,0.01]
[1625158274607,4.8102,2088.9,2088.2,0.01]
[1625158275229,4.8219975,2088.9,2088.2,0.01]
[1625158275432,0.0117975,2088.9,2088.2,0.01]
[1625158276484,7.1906575,2088.9,2088.2,0.01]
[1625158278787,0.0117975,2088.9,2088.2,0.01]
[1625158280018,0.0117975,2088.9,2088.2,13.60089458]
[1625158280214,0.0117975,2088.9,2088.2,18.61089458]
[1625158280614,0.0117975,2088.9,2088.2,11.43266458]
[1625158281413,7.1904175,2088.9,2088.2,11.43266458]
[1625158281887,0.0117975,2088.9,2088.2,19.43266458]
[1625158282187,0.0117975,2088.9,2088.3,0.15]
[1625158282494,0.0117975,2088.9,2088.4,9.61590458]
[1625158282640,0.0117975,2088.9,2088.4,14.62590458]
[1625158285670,0.0117975,2088.9,2088.4,15.44826458]
[1625158285819,0.0117975,2088.9,2088.5,0.15]
[1625158285918,0.0117975,2088.9,2088.5,0.29]
[1625158286159,7.5e-06,2088.9,2088.6,4.872225]
[1625158286403,18.56315823,2090.2,2088.9,0.0059925]
[1625158286502,6.60032823,2090.2,2088.9,0.0059925]
[1625158286601,3.3,2090.3,2089.0,0.15]
[1625158286755,7.17331,2090.6,2089.5,11.71462]
[1625158286855,11.95896,2090.9,2089.5,12.67331365]
[1625158286963,6.87,2091.0,2089.6,0.33]
[1625158287254,6.87,2091.0,2089.6,17.58396042]
[1625158287348,6.87,2091.0,2089.7,2.43826458]
[1625158287550,6.87,2091.0,2089.8,0.15]
[1625158287650,6.87,2091.0,2089.8,2.58396042]
[1625158287999,6.87,2091.0,2089.9,2.43826458]
[1625158288301,6.87,2091.0,2090.0,3.2044]
[1625158288452,6.87,2091.0,2090.3,7.17095]
[1625158288550,6.87,2091.0,2090.3,12.18095]
[1625158289103,6.87,2091.0,2090.4,0.15]
[1625158289400,6.87,2091.0,2090.5,2.51826458]
[1625158289502,6.87,2091.0,2090.6,7.16928]
[1625158289598,6.87,2091.0,2090.6,10.83408]
[1625158289751,14.03962,2091.7,2090.7,0.15]
[1625158290058,6.87,2091.7,2090.7,0.15]
[1625158290151,6.87,2091.7,2090.8,2.43826458]
[1625158290251,10.4446,2091.9,2090.8,2.43826458]
[1625158290356,6.60032823,2092.0,2090.9,0.15]
[1625158290848,7.16938,2091.8,2090.9,0.15]
[1625158291201,7.16938,2091.8,2090.4,5.16]
[1625158291299,7.16938,2091.8,2090.4,0.15]
[1625158291401,11.93168,2091.8,2090.4,5.16]
[1625158291661,11.88168,2091.8,2090.4,5.16]
[1625158291751,11.88168,2091.8,2090.4,0.15]
[1625158291899,11.88168,2091.8,2090.4,5.16]
[1625158292012,11.88168,2091.8,2090.4,0.15]
[1625158292150,11.88168,2091.8,2090.4,5.16]
[1625158292304,11.88168,2091.8,2090.4,0.15]
[1625158292550,3.5860632,2091.6,2090.4,0.15]
[1625158293573,7.17237,2091.0,2090.0,10.9529]
[1625158293672,11.17347,2091.0,2090.0,10.9529]
[1625158293771,22.78379823,2091.0,2090.0,10.9529]
[1625158293875,22.78379823,2091.0,2089.8,0.15]
[1625158293971,0.22049758,2090.9,2089.5,10.2176]
[1625158294220,0.04,2090.8,2089.3,10.9032]
[1625158294321,3.587814,2090.5,2089.3,10.9032]
[1625158294468,12.292214,2090.5,2089.3,10.9032]
[1625158294673,7.17555,2090.0,2089.3,10.9032]
[1625158294771,11.21195,2090.0,2089.0,21.3918]
[1625158294872,11.21195,2090.0,2089.0,10.4767]
[1625158295504,11.21195,2090.0,2089.0,15.4867]
[1625158295706,11.21195,2090.0,2089.0,10.4767]
[1625158297717,6.81017313,2090.2,2089.0,10.4767]
[1625158297815,0.20723924,2090.1,2089.1,9.494525]
[1625158298068,17.61752823,2090.8,2089.2,0.15]
[1625158298364,17.61752823,2090.8,2089.3,2.43396042]
[1625158298460,6.60032823,2090.8,2089.3,4.872225]
[1625158298559,6.60032823,2090.8,2089.4,0.15]
[1625158299063,7.1741,2090.4,2089.4,0.15]
[1625158299215,9.56535,2090.6,2089.3,14.57477]
[1625158299315,9.56535,2090.6,2089.3,5.01]
[1625158299512,9.56535,2090.6,2089.0,15.4867]
[1625158299674,9.56535,2090.6,2089.0,10.4767]
[1625158300470,7.17597,2089.9,2089.0,17.65197]
[1625158300926,3.6621,2090.0,2089.0,20.09023458]
[1625158301022,3.6621,2090.0,2089.0,22.524195]
[1625158301374,3.6621,2090.0,2089.1,0.15]
[1625158301472,3.6621,2090.0,2089.4,7.1742]
[1625158301674,7.17436,2090.4,2089.4,12.1842]
[1625158301773,7.17436,2090.4,2089.4,7.1742]
[1625158301942,6.60032823,2090.5,2089.4,12.1842]
[1625158302030,15.5454647,2091.1,2089.4,14.61816042]
[1625158302175,22.4154647,2091.1,2089.5,2.68826458]
[1625158302274,22.4154647,2091.1,2089.5,2.58826458]
[1625158302373,18.82853,2091.1,2089.5,2.58826458]
[1625158302475,18.82853,2091.1,2089.6,2.43396042]
[1625158302822,18.82853,2091.1,2089.7,2.58826458]
[1625158303032,7.17244,2090.9,2089.9,4.2613]
[1625158303128,6.87,2091.1,2089.9,19.2613]
[1625158303279,6.87,2091.1,2090.0,2.58826458]
[1625158303431,6.87,2091.1,2090.0,5.022225]
[1625158304164,10.4377,2091.7,2090.0,8.607385]
[1625158304165,17.3077,2091.7,2090.0,8.607385]
[1625158304268,7.1707,2091.5,2090.5,7.17023]
[1625158304420,7.1707,2091.5,2090.5,11.13513]
[1625158305421,6.87,2091.7,2090.5,11.13513]
[1625158305519,14.03995,2091.7,2090.5,11.13513]
[1625158305617,14.03995,2091.7,2090.5,16.007355]
[1625158306399,14.03995,2091.7,2090.5,11.13513]
[1625158306600,13.98995,2091.7,2090.5,11.13513]
[1625158306701,13.98995,2091.7,2090.5,0.15]
[1625158307358,21.2999709,2091.7,2090.5,0.15]
[1625158307454,25.4891709,2091.7,2089.9,9.71198]
[1625158307603,0.45754552,2091.6,2089.9,9.71198]
[1625158307755,10.92024,2090.8,2089.8,21.7543]
[1625158308399,10.92024,2090.8,2089.8,11.0211]
[1625158309923,0.21495124,2090.7,2089.8,11.0211]
[1625158310171,0.08,2090.6,2089.2,21.579]
[1625158310273,0.32138708,2090.5,2089.2,10.963]
[1625158310525,0.3860582,2090.7,2089.2,10.963]
[1625158310620,0.24854859,2090.3,2089.2,10.963]
[1625158310718,4.98074859,2090.3,2089.2,10.963]
[1625158311462,7.17576,2090.0,2089.2,10.963]
[1625158311662,7.17576,2090.0,2089.1,7.17496]
[1625158311813,0.23258266,2089.9,2089.0,10.8993]
[1625158311911,0.23258266,2089.9,2088.9,0.0059925]
[1625158312110,1.8769,2090.0,2088.9,0.0059925]
[1625158312211,1.8769,2090.0,2088.9,4.8782175]
[1625158312361,1.8769,2090.0,2089.0,0.06]
[1625158312514,1.8769,2090.0,2089.2,7.17496]
[1625158312714,1.8769,2090.0,2089.2,12.18496]
[1625158312963,0.8469,2090.0,2089.2,12.18496]
[1625158313061,7.17489,2090.2,2089.2,12.18496]
[1625158313521,16.16776823,2090.4,2089.2,12.18496]
[1625158313625,18.9482355,2090.8,2089.2,20.18496]
[1625158313796,11.9606,2090.8,2089.3,3.58677]
[1625158313925,11.9606,2090.8,2089.3,7.16797]
[1625158314022,11.9606,2090.8,2089.3,11.99797]
[1625158314780,11.9606,2090.8,2089.6,9.56403]
[1625158314781,7.1735,2090.6,2089.6,9.56403]
[1625158314879,7.1735,2090.6,2089.6,14.57403]
[1625158314977,7.1735,2090.6,2089.7,0.15]
[1625158315663,10.3952,2091.0,2089.7,0.15]
[1625158315757,6.87,2091.1,2089.7,0.15]
[1625158315955,11.88,2091.1,2089.7,0.15]
[1625158316366,6.87,2091.1,2089.7,0.15]
[1625158316661,6.87,2091.1,2089.7,2.58826458]
[1625158316764,0.01099423,2091.0,2089.7,8.25474154]
[1625158316858,0.01099423,2091.0,2089.7,13.26474154]
[1625158316964,7.17249,2090.9,2089.7,21.26474154]
[1625158317064,7.17249,2090.9,2090.0,7.17218]
[1625158317262,0.01099423,2091.0,2090.0,12.18218]
[1625158318116,0.01099423,2091.0,2090.0,11.60054734]
[1625158318613,0.01099423,2091.0,2090.0,5.01]
[1625158318814,0.01099423,2091.0,2089.9,5.16]
[1625158318962,0.01099423,2091.0,2089.9,0.15]
[1625158319112,0.01099423,2091.0,2089.9,5.16]
[1625158319220,0.01099423,2091.0,2089.7,5.01]
[1625158319221,7.18300423,2091.0,2089.7,5.01]
[1625158319367,7.18300423,2091.0,2089.3,31.5243]
[1625158319368,13.78333246,2091.0,2089.3,20.9439]
[1625158319465,0.16,2090.9,2089.3,10.463]
[1625158319617,0.41263137,2090.9,2089.3,10.463]
[1625158320267,0.41263137,2090.9,2089.4,7.17435]
[1625158320268,7.17485,2090.2,2089.4,7.17435]
[1625158320364,11.76185,2090.2,2089.4,7.17435]
[1625158321163,4.587,2090.2,2089.4,7.17435]
[1625158321363,4.587,2090.2,2089.4,7.32435]
[1625158321466,6.60032823,2090.6,2089.4,7.32435]
[1625158321675,9.56647,2090.8,2089.4,7.32435]
[1625158321676,7.17408,2090.5,2089.4,9.76261458]
[1625158321815,9.56647,2090.8,2089.4,9.76261458]
[1625158322268,9.56647,2090.8,2089.6,3.58648]
[1625158322517,9.56647,2090.8,2089.7,0.15]
[1625158322771,9.56647,2090.8,2089.9,7.17296]
[1625158322967,9.56647,2090.8,2089.9,12.18296]
[1625158323217,6.61132246,2091.0,2089.9,12.18296]
[1625158323919,7.17324,2090.6,2089.9,12.18296]
[1625158324661,7.17324,2090.6,2089.9,5.01]
[1625158324760,7.17324,2090.6,2089.7,14.72395]
[1625158327205,11.57833722,2090.6,2089.7,0.15]
[1625158327305,11.57833722,2090.6,2089.3,10.463]
[1625158327454,0.38297015,2090.5,2089.3,10.463]
[1625158327655,0.16,2090.5,2089.3,10.463]
[1625158327753,6.60032823,2090.4,2089.3,10.463]
[1625158328409,6.60032823,2090.4,2089.3,17.63779]
[1625158328410,7.17487,2090.1,2089.3,17.63779]
[1625158328508,16.16681823,2090.4,2089.3,17.63779]
[1625158329959,6.60032823,2090.4,2089.3,17.63779]
[1625158330060,6.60032823,2090.4,2089.3,21.22454]
[1625158330160,6.60032823,2090.4,2089.4,0.15]
[1625158330824,6.60032823,2090.4,2089.5,2.29709824]
[1625158330921,6.60032823,2090.4,2089.5,2.35709824]
[1625158331025,0.01089722,2090.6,2089.9,7.17239]
[1625158331169,0.01089722,2090.6,2090.0,0.15]
[1625158332367,0.01089722,2090.6,2090.0,7.32232]
[1625158332565,0.01089722,2090.6,2090.0,12.33232]
[1625158332867,0.01089722,2090.6,2090.0,20.33232]
[1625158332966,0.01089722,2090.6,2090.0,13.16]
[1625158333070,0.01089722,2090.6,2090.0,5.16]
[1625158333171,0.01089722,2090.6,2090.0,0.15]
[1625158333473,7.18409722,2090.6,2089.5,9.71456]
[1625158335677,0.01089722,2090.6,2089.5,14.36519728]
[1625158335776,0.01089722,2090.6,2089.5,27.37519728]
[1625158335873,0.01089722,2090.6,2089.5,31.09739728]
[1625158335979,0.01089722,2090.6,2089.5,31.15739728]
[1625158336176,0.01089722,2090.6,2089.6,3.62623]
[1625158336277,9.52417722,2091.0,2089.7,29.55]
[1625158336375,9.52417722,2091.0,2089.7,29.7]
[1625158336577,9.52417722,2091.0,2089.7,34.71]
[1625158336677,7.17365,2090.4,2089.7,12.33336]
[1625158336981,9.56458,2090.7,2089.7,12.33336]
[1625158337177,9.56458,2090.7,2089.7,15.72946]
[1625158337982,9.52417722,2091.0,2089.7,16.5561]
[1625158338177,9.52417722,2091.0,2089.8,0.06]
[1625158338377,9.52417722,2091.0,2089.7,8.4061]
[1625158338527,9.52417722,2091.0,2089.8,8.15]
[1625158338678,9.52417722,2091.0,2089.9,3.58604]
[1625158338879,9.52417722,2091.0,2090.0,0.15]
[1625158338979,0.00934088,2090.6,2090.3,10.22954]
[1625158339177,0.00934088,2090.6,2090.3,3.0579]
[1625158339579,0.00934088,2090.6,2090.3,8.0679]
[1625158339781,0.00934088,2090.6,2090.3,16.0679]
[1625158339881,0.00934088,2090.6,2090.3,19.80750571]
[1625158339983,0.00934088,2090.6,2090.4,7.35119]
[1625158340196,8.8e-07,2090.6,2090.5,0.15]
[1625158340495,8.8e-07,2090.6,2090.5,0.25]
[1625158340748,8.8e-07,2090.6,2090.5,2.64242368]
[1625158340848,8.8e-07,2090.6,2090.5,4.92285525]
[1625158340948,8.8e-07,2090.6,2090.5,24.93285525]
[1625158341048,8.8e-07,2090.6,2090.5,32.93285525]
[1625158341253,6.87,2092.1,2090.7,0.00599912]
[1625158341352,6.87,2092.1,2090.5,36.24285525]
[1625158341502,6.87,2092.1,2090.9,3.46]
[1625158341599,6.87,2092.1,2091.0,15.0]
[1625158341693,6.87,2092.1,2091.0,0.31]
[1625158341802,6.87,2092.1,2091.0,5.32]
[1625158341894,6.87,2092.1,2091.0,0.15]
[1625158341996,6.87,2092.1,2091.0,5.16]
[1625158342248,6.87,2092.1,2091.0,15.15]
[1625158342435,10.7636,2092.9,2091.0,28.41624165]
[1625158342538,10.7636,2092.9,2091.8,7.16639]
[1625158342682,10.7636,2092.9,2091.8,4.7196]
[1625158342783,10.7636,2092.9,2091.8,9.7296]
[1625158342884,10.7636,2092.9,2091.8,4.7196]
[1625158342981,10.7636,2092.9,2091.8,9.7296]
[1625158343084,10.7636,2092.9,2091.8,4.7196]
[1625158343184,10.7636,2092.9,2091.8,9.7296]
[1625158343582,13.76753823,2092.6,2091.8,9.7296]
[1625158343691,13.76753823,2092.6,2091.5,5.01]
[1625158343790,17.51163823,2092.6,2091.2,0.15]
[1625158343945,0.1,2092.5,2091.1,10.0274]
[1625158344086,0.1,2092.4,2091.1,10.0274]
[1625158344286,6.60032823,2092.3,2091.1,10.0274]
[1625158344731,7.16889,2092.1,2091.1,17.19622]
[1625158345031,7.16889,2092.1,2091.1,22.20622]
[1625158345836,7.16889,2092.1,2091.1,30.20622]
[1625158345942,7.16792,2092.3,2091.2,0.15]
[1625158346092,9.55843,2092.7,2091.2,0.15]
[1625158346237,9.55843,2092.7,2091.2,0.21]
[1625158346385,6.60032823,2092.8,2091.2,15.15]
[1625158346591,6.60032823,2092.8,2091.2,20.16]
[1625158346592,3.58342,2092.7,2091.2,20.16]
[1625158347355,3.58342,2092.7,2091.8,7.16617]
[1625158347452,3.58342,2092.7,2091.8,10.48947]
[1625158347553,3.58342,2092.7,2091.8,15.49947]
[1625158347800,3.58342,2092.7,2091.8,8.3333]
[1625158347904,6.60032823,2092.8,2091.8,3.3233]
[1625158348401,11.61032823,2092.8,2091.8,3.3233]
[1625158348504,7.16801,2092.3,2091.7,1.1602]
[1625158348654,7.16801,2092.3,2091.2,0.15]
[1625158349002,7.16801,2092.3,2091.2,4.6918]
[1625158349179,3.58426,2092.1,2091.2,4.6918]
[1625158349277,3.58426,2092.1,2091.2,9.7018]
[1625158349727,10.7527,2092.1,2091.2,16.86992]
[1625158351182,3.58426,2092.1,2091.2,16.86992]
[1625158352283,7.16826,2092.2,2091.2,9.7018]
[1625158352379,0.00879039,2092.3,2091.2,9.7018]
[1625158353182,3.58426,2092.1,2091.2,9.7018]
[1625158354331,3.58426,2092.1,2091.2,16.86992]
[1625158354628,3.58426,2092.1,2091.2,9.7018]
[1625158355432,0.00879039,2092.3,2091.2,16.86996]
[1625158355531,0.00879039,2092.3,2091.3,0.06]
[1625158355785,0.00879039,2092.3,2091.4,0.15]
[1625158356037,0.00879039,2092.3,2091.4,4.82285525]
[1625158356139,0.00879039,2092.3,2091.4,17.83285525]
[1625158356742,0.00879039,2092.3,2091.8,11.4083]
[1625158356988,0.00879039,2092.3,2091.9,0.15]
[1625158358586,0.00879039,2092.3,2091.6,9.55466]
[1625158358735,0.00879039,2092.3,2091.7,0.15]
[1625158360829,0.00879039,2092.3,2091.7,3.7733]
[1625158361033,0.00879039,2092.3,2091.7,8.7833]
[1625158361232,0.00879039,2092.3,2091.7,16.7833]
[1625158361432,0.00879039,2092.3,2091.8,0.06]
[1625158361693,0.00879039,2092.3,2091.9,0.15]
[1625158364429,0.00879039,2092.3,2091.9,7.31565]
[1625158364528,0.00879039,2092.3,2091.9,12.32565]
[1625158366291,0.00879039,2092.3,2091.9,5.16]
[1625158366392,0.00879039,2092.3,2091.9,0.15]
[1625158366493,0.00879039,2092.3,2091.9,5.16]
[1625158366743,0.00879039,2092.3,2091.8,14.56382]
[1625158368329,3.54212039,2092.5,2091.9,29.55]
[1625158368583,3.54212039,2092.5,2091.9,34.56]
[1625158368781,3.54212039,2092.5,2091.9,5.01]
[1625158368980,3.54212039,2092.5,2091.8,14.56382]
[1625158369186,3.54212039,2092.5,2091.8,22.56382]
[1625158369330,3.54212039,2092.5,2091.8,24.23942]
[1625158370493,3.54212039,2092.5,2092.0,7.1657]
[1625158370594,3.54212039,2092.5,2092.0,12.1446]
[1625158370690,3.54212039,2092.5,2092.0,17.1546]
[1625158371842,0.00778124,2092.4,2092.0,17.9889]
[1625158371939,0.00778124,2092.4,2092.1,0.15]
[1625158372188,0.00778124,2092.4,2092.2,0.12]
[1625158372287,0.00778124,2092.4,2092.1,0.15]
[1625158373445,0.00778124,2092.4,2092.2,7.16506]
[1625158373591,0.00778124,2092.4,2092.2,20.17506]
[1625158373691,0.00778124,2092.4,2092.2,12.17506]
[1625158374395,0.00778124,2092.4,2092.2,20.17506]
[1625158375771,0.00778124,2092.4,2092.2,12.17506]
[1625158375874,0.00778124,2092.4,2091.8,9.55382]
[1625158376026,3.90988124,2092.4,2091.7,0.15]
[1625158376961,7.49307124,2092.4,2091.7,7.31695]
[1625158377457,7.49307124,2092.4,2091.7,15.31695]
[1625158377562,7.49307124,2092.4,2091.7,35.32695]
[1625158377662,0.00778124,2092.4,2091.7,24.99042157]
[1625158377760,0.00778124,2092.4,2091.8,0.12]
[1625158378012,0.00778124,2092.4,2092.1,7.16425]
[1625158378210,0.00778124,2092.4,2092.2,0.15]
[1625158379196,0.00778124,2092.4,2092.2,7.315]
[1625158379398,0.00778124,2092.4,2092.2,12.325]
[1625158379602,0.00778124,2092.4,2092.2,5.16]
[1625158379799,0.00778124,2092.4,2092.2,0.15]
[1625158379900,0.00778124,2092.4,2092.2,5.16]
[1625158380003,0.00778124,2092.4,2092.1,5.01]
[1625158380154,0.00778124,2092.4,2091.7,13.58294]
[1625158380155,3.59072124,2092.4,2092.2,5.01]
[1625158380248,3.59072124,2092.4,2091.7,11.0499]
[1625158380350,3.59072124,2092.4,2091.6,9.55492]
[1625158380678,3.59072124,2092.4,2091.8,9.55402]
[1625158381887,3.59072124,2092.4,2092.0,15.0]
[1625158382287,3.59072124,2092.4,2092.0,15.59167346]
[1625158382635,3.59072124,2092.4,2092.0,10.61210203]
[1625158382965,0.08,2092.3,2092.0,10.61210203]
[1625158383454,0.08,2092.3,2092.0,5.60210203]
[1625158383556,3.59072124,2092.4,2092.0,10.61210203]
[1625158383955,7.16693,2092.3,2092.0,10.61210203]
[1625158384056,3.59072124,2092.4,2092.0,10.61210203]
[1625158384956,10.75712124,2092.4,2092.0,5.60210203]
[1625158385541,3.59072124,2092.4,2092.0,5.60210203]
[1625158385944,0.06,2092.3,2092.0,5.60210203]
[1625158386392,3.59072124,2092.4,2092.0,5.60210203]
[1625158386497,7.16686,2092.3,2092.0,5.60210203]
[1625158386747,20.35,2092.2,2091.0,2.38304]
[1625158386898,25.14140795,2092.2,2090.9,10.8332]
[1625158386996,0.2,2092.1,2090.9,10.8332]
[1625158387093,0.26143896,2092.0,2090.9,10.8332]
[1625158387297,0.06,2091.9,2090.9,10.8332]
[1625158387508,7.17035,2091.5,2090.9,10.8332]
[1625158387605,3.58531,2091.4,2090.6,10.2988]
[1625158387857,3.58531,2091.4,2090.3,10.2002]
[1625158387958,0.27247694,2091.3,2090.3,0.15]
[1625158388111,2.5,2090.9,2089.7,10.5468]
[1625158388209,3.5865,2090.7,2089.8,10.0621]
[1625158388306,0.23034618,2090.6,2089.8,10.0621]
[1625158388409,0.23034618,2090.6,2089.3,10.3277]